[Event "RUS-ch Blitz 2021"]
[Site "Sochi"]
[Date "2021.10.11"]
[Round "1.12"]
[White "Koshulyan, Egor A."]
[Black "Kokarev, Dmitry"]
[Result "0-1"]
[ECO "B53"]
[WhiteElo "2002"]
[BlackElo "2579"]
[Annotator "ChessBase"]
[PlyCount "92"]
[EventDate "2021.10.11"]
[EventType "blitz"]
[EventCountry "RUS"]
[SourceTitle "playchess.com"]
[Source "ChessBase"]
[SourceQuality "1"]
[TimeControl "180+2"]

1. e4 {[%emt 0:00:00]} c5 {[%emt 0:00:05]} 2. Nf3 {[%emt 0:00:11]} d6 {[%emt 0:
00:00]} 3. d4 {[%emt 0:00:00]} Nf6 {[%emt 0:00:00]} 4. Nc3 {[%emt 0:00:00]}
cxd4 {[%emt 0:00:00]} 5. Qxd4 {[%emt 0:00:03]} Nc6 {[%emt 0:00:02]} 6. Bb5 {
[%emt 0:00:00]} Bd7 {[%emt 0:00:07]} 7. Bxc6 {[%emt 0:00:00]} Bxc6 {[%emt 0:00:
00]} 8. Bg5 {[%emt 0:00:04]} e6 {[%emt 0:00:00]} 9. O-O-O {[%emt 0:00:03]} Be7
{[%emt 0:00:00]} 10. Qd3 {[%emt 0:00:00]} Qa5 {[%emt 0:00:07]} 11. h4 {[%emt 0:
00:37]} h6 {[%emt 0:00:08]} 12. Bd2 {[%emt 0:00:07]} Qa6 {[%emt 0:00:18]} 13.
Qxa6 {[%emt 0:00:04]} bxa6 {[%emt 0:00:02]} 14. Rhe1 {[%emt 0:00:09]} e5 {
[%emt 0:00:10]} 15. Nh2 {[%emt 0:00:54]} O-O {[%emt 0:00:04]} 16. Re2 {[%emt 0:
00:26]} Rfc8 {[%emt 0:00:11]} 17. Nf1 {[%emt 0:00:00]} Kf8 {[%emt 0:00:06]} 18.
f3 {[%emt 0:00:04]} Bb7 {[%emt 0:00:04]} 19. Ne3 {[%emt 0:00:09]} Nh5 {[%emt 0:
00:06]} 20. Be1 {[%emt 0:00:00]} g6 {[%emt 0:00:09]} 21. Red2 {[%emt 0:00:05]}
a5 {[%emt 0:00:17]} 22. Ncd5 {[%emt 0:00:04]} Bd8 {[%emt 0:00:00]} 23. Nc3 {
[%emt 0:00:04]} Bb6 {[%emt 0:00:16]} 24. Bf2 {[%emt 0:00:10]} Bc5 {[%emt 0:00:
03]} 25. Ncd5 {[%emt 0:00:19]} a4 {[%emt 0:00:10]} 26. a3 {[%emt 0:00:00]} Rab8
{[%emt 0:00:04]} 27. g3 {[%emt 0:00:09]} Bd4 {[%emt 0:00:07]} 28. c3 {[%emt 0:
00:04]} Bxd5 {[%emt 0:00:04]} 29. Nxd5 {[%emt 0:00:05]} Bxf2 {[%emt 0:00:01]}
30. Rxf2 {[%emt 0:00:00]} Nxg3 {[%emt 0:00:00]} 31. Ne3 {[%emt 0:00:04]} Rc6 {
[%emt 0:00:07]} 32. Rfd2 {[%emt 0:00:00]} Ke7 {[%emt 0:00:12]} 33. Nd5+ {
[%emt 0:00:00]} Ke6 {[%emt 0:00:00]} 34. Nb4 {[%emt 0:00:03]} Rcb6 {[%emt 0:00:
00]} 35. Nd5 {[%emt 0:00:00]} R6b7 {[%emt 0:00:09]} 36. Nb4 {[%emt 0:00:02]}
Rd7 {[%emt 0:00:04]} 37. Nc6 {[%emt 0:00:12]} Rc8 {[%emt 0:00:04]} 38. Nb4 {
[%emt 0:00:01]} Nh5 {[%emt 0:00:03]} 39. Rd5 {[%emt 0:00:03]} Rc5 {[%emt 0:00:
06]} 40. Na6 {[%emt 0:00:03]} Rxd5 {[%emt 0:00:03]} 41. Rxd5 {[%emt 0:00:00]}
f5 {[%emt 0:00:06]} 42. Nb4 {[%emt 0:00:04]} fxe4 {[%emt 0:00:04]} 43. fxe4 {
[%emt 0:00:00]} Nf6 {[%emt 0:00:00]} 44. Ra5 {[%emt 0:00:02]} Nxe4 {[%emt 0:00:
04]} 45. Rxa4 {[%emt 0:00:00]} Nc5 {[%emt 0:00:02]} 46. Ra5 {[%emt 0:00:00]}
Nb3+ {[%emt 0:00:00]} 0-1

[Event "RUS-ch Blitz 2021"]
[Site "Sochi"]
[Date "2021.10.11"]
[Round "1.13"]
[White "Iljiushenok, Ilia"]
[Black "Pervakov, Sergey"]
[Result "1-0"]
[ECO "B04"]
[WhiteElo "2554"]
[BlackElo "2052"]
[Annotator "ChessBase"]
[PlyCount "51"]
[EventDate "2021.10.11"]
[EventType "blitz"]
[EventCountry "RUS"]
[SourceTitle "playchess.com"]
[Source "ChessBase"]
[SourceQuality "1"]
[TimeControl "180+2"]

1. e4 {[%emt 0:00:00]} Nf6 {[%emt 0:00:06]} 2. e5 {[%emt 0:00:02]} Nd5 {
[%emt 0:00:00]} 3. d4 {[%emt 0:00:00]} Nb6 {[%emt 0:00:08]} 4. Nf3 {[%emt 0:00:
04]} d6 {[%emt 0:00:00]} 5. h3 {[%emt 0:00:17]} g6 {[%emt 0:00:00]} 6. Bd3 {
[%emt 0:00:02]} Bg7 {[%emt 0:00:00]} 7. O-O {[%emt 0:00:00]} O-O {[%emt 0:00:
00]} 8. Qe2 {[%emt 0:00:08]} Nc6 {[%emt 0:00:31]} 9. c3 {[%emt 0:00:00]} Bd7 {
[%emt 0:01:10]} 10. Bf4 {[%emt 0:00:00]} Qc8 {[%emt 0:00:03]} 11. Nbd2 {
[%emt 0:00:08]} Bf5 {[%emt 0:00:00]} 12. Ne4 {[%emt 0:00:08]} dxe5 {[%emt 0:00:
09]} 13. dxe5 {[%emt 0:00:05]} Nd5 {[%emt 0:00:00]} 14. Bg3 {[%emt 0:00:02]} h6
{[%emt 0:00:09]} 15. Rad1 {[%emt 0:00:02]} Rd8 {[%emt 0:00:09]} 16. Rfe1 {
[%emt 0:00:00]} e6 {[%emt 0:00:11]} 17. Bb1 {[%emt 0:00:15]} Nce7 {[%emt 0:00:
09]} 18. c4 {[%emt 0:00:08]} Nb6 {[%emt 0:00:19]} 19. b3 {[%emt 0:00:00]} Rxd1
{[%emt 0:00:09]} 20. Rxd1 {[%emt 0:00:00]} Qe8 {[%emt 0:00:04]} 21. Nf6+ {
[%emt 0:00:00]} Bxf6 {[%emt 0:00:02]} 22. exf6 {[%emt 0:00:03]} Bxb1 {[%emt 0:
00:12]} 23. fxe7 {[%emt 0:00:10]} Bf5 {[%emt 0:00:04]} 24. Bxc7 {[%emt 0:00:06]
} Qxe7 {[%emt 0:00:03]} 25. Bd6 {[%emt 0:00:00]} Qe8 {[%emt 0:00:11]} 26. g4 {
[%emt 0:00:00]} 1-0

[Event "RUS-ch Blitz 2021"]
[Site "Sochi"]
[Date "2021.10.11"]
[Round "1.14"]
[White "Averin, Nikolay"]
[Black "Pridorozhni, Aleksei"]
[Result "0-1"]
[ECO "B45"]
[WhiteElo "2129"]
[BlackElo "2564"]
[Annotator "ChessBase"]
[PlyCount "70"]
[EventDate "2021.10.11"]
[EventType "blitz"]
[EventCountry "RUS"]
[SourceTitle "playchess.com"]
[Source "ChessBase"]
[SourceQuality "1"]
[TimeControl "180+2"]

1. e4 {[%emt 0:00:04]} c5 {[%emt 0:00:00]} 2. Nf3 {[%emt 0:00:00]} e6 {[%emt 0:
00:00]} 3. d4 {[%emt 0:00:04]} cxd4 {[%emt 0:00:02]} 4. Nxd4 {[%emt 0:00:00]}
Nf6 {[%emt 0:00:00]} 5. Nc3 {[%emt 0:00:00]} Nc6 {[%emt 0:00:00]} 6. Ndb5 {
[%emt 0:00:06]} Bc5 {[%emt 0:00:04]} 7. Bf4 {[%emt 0:00:00]} O-O {[%emt 0:00:
00]} 8. Bc7 {[%emt 0:00:00]} Qe7 {[%emt 0:00:00]} 9. Bd6 {[%emt 0:00:00]} Bxd6
{[%emt 0:00:11]} 10. Qxd6 {[%emt 0:00:00]} Qd8 {[%emt 0:00:00]} 11. Nc7 {
[%emt 0:00:05]} Rb8 {[%emt 0:00:00]} 12. Be2 {[%emt 0:00:00]} b5 {[%emt 0:00:
05]} 13. e5 {[%emt 0:00:01]} Ne8 {[%emt 0:00:15]} 14. Nxe8 {[%emt 0:00:01]}
Rxe8 {[%emt 0:00:02]} 15. f4 {[%emt 0:00:13]} Qb6 {[%emt 0:00:09]} 16. Qd2 {
[%emt 0:00:39]} Bb7 {[%emt 0:00:06]} 17. O-O-O {[%emt 0:00:36]} Red8 {[%emt 0:
00:17]} 18. Bf3 {[%emt 0:00:19]} Na5 {[%emt 0:00:19]} 19. Bxb7 {[%emt 0:00:05]}
Rxb7 {[%emt 0:00:06]} 20. Qd4 {[%emt 0:00:14]} Qc7 {[%emt 0:00:02]} 21. Ne4 {
[%emt 0:00:35]} Nc4 {[%emt 0:00:00]} 22. Kb1 {[%emt 0:00:07]} Rb6 {[%emt 0:00:
09]} 23. Qc3 {[%emt 0:00:22]} Rc6 {[%emt 0:00:02]} 24. Qg3 {[%emt 0:00:05]} d5
{[%emt 0:00:09]} 25. Nf6+ {[%emt 0:00:11]} Kh8 {[%emt 0:00:05]} 26. Nh5 {
[%emt 0:00:04]} Rg8 {[%emt 0:00:04]} 27. c3 {[%emt 0:00:00]} a5 {[%emt 0:00:07]
} 28. Rd4 {[%emt 0:00:04]} b4 {[%emt 0:00:03]} 29. Rc1 {[%emt 0:00:03]} bxc3 {
[%emt 0:00:09]} 30. Rxc3 {[%emt 0:00:00]} Qb6 {[%emt 0:00:00]} 31. Rdxc4 {
[%emt 0:00:04]} Rxc4 {[%emt 0:00:00]} 32. Rxc4 {[%emt 0:00:02]} dxc4 {[%emt 0:
00:01]} 33. Qe1 {[%emt 0:00:02]} Rb8 {[%emt 0:00:10]} 34. Qc1 {[%emt 0:00:02]}
Qd4 {[%emt 0:00:05]} 35. Ka1 {[%emt 0:00:02]} Ra8 {[%emt 0:00:00]} 0-1

[Event "RUS-ch Blitz 2021"]
[Site "Sochi"]
[Date "2021.10.11"]
[Round "1.15"]
[White "Antipov, Mikhail Al."]
[Black "Parfenov, Viktor N."]
[Result "1-0"]
[ECO "C50"]
[WhiteElo "2619"]
[BlackElo "2204"]
[Annotator "ChessBase"]
[PlyCount "59"]
[EventDate "2021.10.11"]
[EventType "blitz"]
[EventCountry "RUS"]
[SourceTitle "playchess.com"]
[Source "ChessBase"]
[SourceQuality "1"]
[TimeControl "180+2"]

1. e4 {[%emt 0:00:00]} e5 {[%emt 0:00:04]} 2. Nf3 {[%emt 0:00:02]} Nc6 {
[%emt 0:00:00]} 3. Bc4 {[%emt 0:00:00]} Nf6 {[%emt 0:00:04]} 4. d3 {[%emt 0:00:
00]} Bc5 {[%emt 0:00:00]} 5. O-O {[%emt 0:00:00]} O-O {[%emt 0:00:07]} 6. Nbd2
{[%emt 0:00:03]} d5 {[%emt 0:00:15]} 7. exd5 {[%emt 0:00:01]} Nxd5 {[%emt 0:00:
00]} 8. Ne4 {[%emt 0:00:07]} Be7 {[%emt 0:00:11]} 9. Nfg5 {[%emt 0:00:16]} Bf5
{[%emt 0:00:58]} 10. c3 {[%emt 0:00:04]} Qd7 {[%emt 0:00:18]} 11. Qf3 {[%emt 0:
01:00]} Nb6 {[%emt 0:00:07]} 12. Bb3 {[%emt 0:00:15]} Bg6 {[%emt 0:00:24]} 13.
h4 {[%emt 0:00:04]} Bxg5 {[%emt 0:00:23]} 14. Bxg5 {[%emt 0:00:10]} Kh8 {
[%emt 0:00:10]} 15. h5 {[%emt 0:00:21]} Bxe4 {[%emt 0:00:06]} 16. dxe4 {
[%emt 0:00:00]} f6 {[%emt 0:00:03]} 17. Be3 {[%emt 0:00:02]} Qe7 {[%emt 0:00:
02]} 18. h6 {[%emt 0:00:18]} Na5 {[%emt 0:00:00]} 19. hxg7+ {[%emt 0:00:02]}
Qxg7 {[%emt 0:00:00]} 20. Be6 {[%emt 0:00:00]} Nac4 {[%emt 0:00:05]} 21. Bc5 {
[%emt 0:00:07]} Rfd8 {[%emt 0:00:04]} 22. Bf5 {[%emt 0:00:03]} Nd6 {[%emt 0:00:
04]} 23. Bxd6 {[%emt 0:00:13]} Rxd6 {[%emt 0:00:00]} 24. g3 {[%emt 0:00:00]}
Nc4 {[%emt 0:00:20]} 25. Qe2 {[%emt 0:00:08]} b5 {[%emt 0:00:02]} 26. Kg2 {
[%emt 0:00:12]} Rd2 {[%emt 0:00:01]} 27. Qf3 {[%emt 0:00:02]} Qg5 {[%emt 0:00:
01]} 28. Rae1 {[%emt 0:00:09]} Kg7 {[%emt 0:00:03]} 29. Rh1 {[%emt 0:00:01]}
Rh8 {[%emt 0:00:02]} 30. Rh5 {[%emt 0:00:05]} 1-0

[Event "RUS-ch Blitz 2021"]
[Site "Sochi"]
[Date "2021.10.11"]
[Round "1.16"]
[White "Kolchin, Maxim"]
[Black "Afanasiev, Nikita"]
[Result "0-1"]
[ECO "A49"]
[WhiteElo "1949"]
[BlackElo "2560"]
[Annotator "ChessBase"]
[PlyCount "50"]
[EventDate "2021.10.11"]
[EventType "blitz"]
[EventCountry "RUS"]
[SourceTitle "playchess.com"]
[Source "ChessBase"]
[SourceQuality "1"]
[TimeControl "180+2"]

1. d4 {[%emt 0:00:04]} Nf6 {[%emt 0:00:00]} 2. Nf3 {[%emt 0:00:00]} g6 {
[%emt 0:00:00]} 3. g3 {[%emt 0:00:04]} Bg7 {[%emt 0:00:04]} 4. Bg2 {[%emt 0:00:
00]} O-O {[%emt 0:00:00]} 5. O-O {[%emt 0:00:06]} c5 {[%emt 0:00:01]} 6. c3 {
[%emt 0:00:00]} Qb6 {[%emt 0:00:00]} 7. Nbd2 {[%emt 0:00:02]} d5 {[%emt 0:00:
05]} 8. e3 {[%emt 0:00:14]} Nc6 {[%emt 0:00:01]} 9. Nb3 {[%emt 0:00:05]} c4 {
[%emt 0:00:14]} 10. Nbd2 {[%emt 0:00:03]} Bf5 {[%emt 0:00:00]} 11. Ne5 {
[%emt 0:00:21]} e6 {[%emt 0:00:11]} 12. Re1 {[%emt 0:00:15]} Nxe5 {[%emt 0:00:
24]} 13. dxe5 {[%emt 0:00:06]} Ng4 {[%emt 0:00:03]} 14. h3 {[%emt 0:00:40]}
Nxe5 {[%emt 0:00:05]} 15. e4 {[%emt 0:00:00]} Nd3 {[%emt 0:00:03]} 16. Rf1 {
[%emt 0:00:14]} Bxe4 {[%emt 0:00:02]} 17. Nxe4 {[%emt 0:00:08]} dxe4 {[%emt 0:
00:00]} 18. Be3 {[%emt 0:00:03]} Qc6 {[%emt 0:00:08]} 19. Qc2 {[%emt 0:00:07]}
f5 {[%emt 0:00:06]} 20. f3 {[%emt 0:00:00]} exf3 {[%emt 0:00:09]} 21. Bxf3 {
[%emt 0:00:01]} Qc7 {[%emt 0:00:00]} 22. Qg2 {[%emt 0:00:15]} Rad8 {[%emt 0:00:
05]} 23. Bxb7 {[%emt 0:00:07]} Rb8 {[%emt 0:00:00]} 24. Bc6 {[%emt 0:00:09]}
Rxb2 {[%emt 0:00:04]} 25. Qf3 {[%emt 0:00:00]} Ne5 {[%emt 0:00:04]} 0-1

[Event "RUS-ch Blitz 2021"]
[Site "Sochi"]
[Date "2021.10.11"]
[Round "1.17"]
[White "Kezin, Roman"]
[Black "Barsamian, Eduard"]
[Result "1-0"]
[ECO "E61"]
[WhiteElo "2492"]
[BlackElo "2232"]
[Annotator "ChessBase"]
[PlyCount "67"]
[EventDate "2021.10.11"]
[EventType "blitz"]
[EventCountry "RUS"]
[SourceTitle "playchess.com"]
[Source "ChessBase"]
[SourceQuality "1"]
[TimeControl "180+2"]

1. d4 {[%emt 0:00:00]} Nf6 {[%emt 0:00:00]} 2. c4 {[%emt 0:00:00]} g6 {[%emt 0:
00:09]} 3. Nc3 {[%emt 0:00:03]} Bg7 {[%emt 0:00:00]} 4. Nf3 {[%emt 0:00:00]}
O-O {[%emt 0:00:00]} 5. Bg5 {[%emt 0:00:07]} d6 {[%emt 0:00:00]} 6. e3 {
[%emt 0:00:00]} Nbd7 {[%emt 0:00:12]} 7. Be2 {[%emt 0:00:00]} b6 {[%emt 0:00:
03]} 8. O-O {[%emt 0:00:11]} Bb7 {[%emt 0:00:00]} 9. Qc2 {[%emt 0:00:00]} h6 {
[%emt 0:00:13]} 10. Bh4 {[%emt 0:00:00]} e5 {[%emt 0:00:11]} 11. Rfd1 {[%emt 0:
00:13]} Qe7 {[%emt 0:00:02]} 12. dxe5 {[%emt 0:00:26]} Nxe5 {[%emt 0:00:23]}
13. Nd5 {[%emt 0:00:00]} Bxd5 {[%emt 0:00:13]} 14. cxd5 {[%emt 0:00:00]} Nxf3+
{[%emt 0:00:05]} 15. Bxf3 {[%emt 0:00:01]} g5 {[%emt 0:00:05]} 16. Bg3 {
[%emt 0:00:01]} h5 {[%emt 0:00:37]} 17. h3 {[%emt 0:00:26]} g4 {[%emt 0:00:08]}
18. hxg4 {[%emt 0:00:00]} hxg4 {[%emt 0:00:03]} 19. Be2 {[%emt 0:00:00]} Nh5 {
[%emt 0:00:01]} 20. Bh2 {[%emt 0:00:22]} g3 {[%emt 0:00:11]} 21. Bxh5 {[%emt 0:
00:06]} gxh2+ {[%emt 0:00:00]} 22. Kh1 {[%emt 0:00:00]} Qe5 {[%emt 0:00:36]}
23. Be2 {[%emt 0:00:13]} Qxb2 {[%emt 0:00:00]} 24. Rac1 {[%emt 0:00:04]} Qf6 {
[%emt 0:00:11]} 25. Bf3 {[%emt 0:00:08]} Rae8 {[%emt 0:00:17]} 26. Qxc7 {
[%emt 0:00:07]} Re5 {[%emt 0:00:00]} 27. Qc4 {[%emt 0:00:50]} Rf5 {[%emt 0:00:
07]} 28. Qe2 {[%emt 0:00:00]} Re8 {[%emt 0:00:01]} 29. Rc6 {[%emt 0:00:06]} Qe7
{[%emt 0:00:08]} 30. Rdc1 {[%emt 0:00:09]} Be5 {[%emt 0:00:00]} 31. Be4 {
[%emt 0:00:08]} Rg5 {[%emt 0:00:00]} 32. f4 {[%emt 0:00:10]} Bg7 {[%emt 0:00:
07]} 33. fxg5 {[%emt 0:00:06]} Qxe4 {[%emt 0:00:00]} 34. Rc8 {[%emt 0:00:02]}
1-0

[Event "RUS-ch Blitz 2021"]
[Site "Sochi"]
[Date "2021.10.11"]
[Round "1.18"]
[White "Onischenko, Leonid"]
[Black "Rozum, Ivan"]
[Result "0-1"]
[ECO "B08"]
[WhiteElo "1946"]
[BlackElo "2529"]
[Annotator "ChessBase"]
[PlyCount "118"]
[EventDate "2021.10.11"]
[EventType "blitz"]
[EventCountry "RUS"]
[SourceTitle "playchess.com"]
[Source "ChessBase"]
[SourceQuality "1"]
[TimeControl "180+2"]

1. d4 {[%emt 0:00:00]} Nf6 {[%emt 0:00:04]} 2. Bf4 {[%emt 0:00:01]} g6 {
[%emt 0:00:00]} 3. Nc3 {[%emt 0:00:07]} Bg7 {[%emt 0:00:00]} 4. e4 {[%emt 0:00:
00]} d6 {[%emt 0:00:00]} 5. Qd2 {[%emt 0:00:05]} c6 {[%emt 0:00:05]} 6. Nf3 {
[%emt 0:00:00]} O-O {[%emt 0:00:10]} 7. Bh6 {[%emt 0:00:00]} b5 {[%emt 0:00:00]
} 8. a3 {[%emt 0:00:00]} Bg4 {[%emt 0:00:04]} 9. Be2 {[%emt 0:00:08]} Nbd7 {
[%emt 0:00:08]} 10. e5 {[%emt 0:00:13]} dxe5 {[%emt 0:00:22]} 11. dxe5 {
[%emt 0:00:04]} Ne8 {[%emt 0:00:29]} 12. Bxg7 {[%emt 0:00:02]} Nxg7 {[%emt 0:
00:00]} 13. Qf4 {[%emt 0:00:13]} Bxf3 {[%emt 0:00:07]} 14. Bxf3 {[%emt 0:00:00]
} Ne6 {[%emt 0:00:05]} 15. Qg3 {[%emt 0:00:00]} Qc7 {[%emt 0:00:00]} 16. O-O {
[%emt 0:00:13]} Nxe5 {[%emt 0:00:04]} 17. Be4 {[%emt 0:00:27]} Rad8 {[%emt 0:
00:04]} 18. Rad1 {[%emt 0:00:17]} a6 {[%emt 0:00:31]} 19. h4 {[%emt 0:00:06]}
Nc4 {[%emt 0:00:10]} 20. Qxc7 {[%emt 0:00:14]} Nxc7 {[%emt 0:00:00]} 21. Bxc6 {
[%emt 0:00:13]} Nxb2 {[%emt 0:00:00]} 22. Rb1 {[%emt 0:00:16]} Nc4 {[%emt 0:00:
07]} 23. Ra1 {[%emt 0:00:00]} Rd4 {[%emt 0:00:08]} 24. h5 {[%emt 0:00:08]} Ne5
{[%emt 0:00:03]} 25. Be4 {[%emt 0:00:30]} Rc4 {[%emt 0:00:06]} 26. Nd5 {
[%emt 0:00:00]} Nxd5 {[%emt 0:00:17]} 27. Bxd5 {[%emt 0:00:00]} Rc5 {[%emt 0:
00:15]} 28. Bb3 {[%emt 0:00:00]} gxh5 {[%emt 0:00:06]} 29. a4 {[%emt 0:00:01]}
b4 {[%emt 0:00:02]} 30. Rfe1 {[%emt 0:00:05]} e6 {[%emt 0:00:03]} 31. Rad1 {
[%emt 0:00:04]} a5 {[%emt 0:00:00]} 32. Rd6 {[%emt 0:00:05]} Kg7 {[%emt 0:00:
06]} 33. Re3 {[%emt 0:00:05]} Rfc8 {[%emt 0:00:00]} 34. Ra6 {[%emt 0:00:05]}
R8c7 {[%emt 0:00:07]} 35. Rg3+ {[%emt 0:00:04]} Ng6 {[%emt 0:00:02]} 36. Rd3 {
[%emt 0:00:04]} h4 {[%emt 0:00:03]} 37. Rd4 {[%emt 0:00:07]} Re5 {[%emt 0:00:
00]} 38. f3 {[%emt 0:00:02]} Rg5 {[%emt 0:00:01]} 39. Kf2 {[%emt 0:00:02]} Rcc5
{[%emt 0:00:01]} 40. Ra7 {[%emt 0:00:03]} Kf6 {[%emt 0:00:05]} 41. Rdd7 {
[%emt 0:00:05]} Ne5 {[%emt 0:00:03]} 42. Rdb7 {[%emt 0:00:02]} Rf5 {[%emt 0:00:
00]} 43. Ke2 {[%emt 0:00:06]} h3 {[%emt 0:00:02]} 44. gxh3 {[%emt 0:00:00]}
Rxf3 {[%emt 0:00:00]} 45. Rxf7+ {[%emt 0:00:05]} Nxf7 {[%emt 0:00:03]} 46. Kxf3
{[%emt 0:00:00]} h6 {[%emt 0:00:09]} 47. Ra6 {[%emt 0:00:03]} Ne5+ {[%emt 0:00:
02]} 48. Ke4 {[%emt 0:00:03]} Nc6 {[%emt 0:00:02]} 49. Kf3 {[%emt 0:00:03]}
Nd4+ {[%emt 0:00:01]} 50. Kg4 {[%emt 0:00:03]} h5+ {[%emt 0:00:08]} 51. Kf4 {
[%emt 0:00:02]} h4 {[%emt 0:00:09]} 52. Kg4 {[%emt 0:00:02]} Nxb3 {[%emt 0:00:
04]} 53. cxb3 {[%emt 0:00:00]} Ke5 {[%emt 0:00:02]} 54. Kxh4 {[%emt 0:00:03]}
Kd5 {[%emt 0:00:00]} 55. Kg5 {[%emt 0:00:03]} e5 {[%emt 0:00:00]} 56. h4 {
[%emt 0:00:01]} e4 {[%emt 0:00:02]} 57. h5 {[%emt 0:00:01]} e3 {[%emt 0:00:00]}
58. Ra8 {[%emt 0:00:03]} Ke4+ {[%emt 0:00:02]} 59. Kg4 {[%emt 0:00:02]} e2 {
[%emt 0:00:00]} 0-1

[Event "RUS-ch Blitz 2021"]
[Site "Sochi"]
[Date "2021.10.11"]
[Round "1.19"]
[White "Popov, Valerij"]
[Black "Muromtsev, Arthur"]
[Result "1-0"]
[ECO "E90"]
[WhiteElo "2537"]
[BlackElo "2115"]
[Annotator "ChessBase"]
[PlyCount "45"]
[EventDate "2021.10.11"]
[EventType "blitz"]
[EventCountry "RUS"]
[SourceTitle "playchess.com"]
[Source "ChessBase"]
[SourceQuality "1"]
[TimeControl "180+2"]

1. d4 {[%emt 0:00:05]} Nf6 {[%emt 0:00:00]} 2. c4 {[%emt 0:00:03]} c5 {[%emt 0:
00:03]} 3. d5 {[%emt 0:00:00]} g6 {[%emt 0:00:09]} 4. Nc3 {[%emt 0:00:00]} Bg7
{[%emt 0:00:00]} 5. e4 {[%emt 0:00:00]} d6 {[%emt 0:00:00]} 6. h3 {[%emt 0:00:
11]} O-O {[%emt 0:00:00]} 7. Nf3 {[%emt 0:00:00]} e6 {[%emt 0:00:00]} 8. Bd3 {
[%emt 0:00:03]} Na6 {[%emt 0:00:03]} 9. O-O {[%emt 0:00:06]} e5 {[%emt 0:00:00]
} 10. Bg5 {[%emt 0:00:04]} h6 {[%emt 0:00:00]} 11. Be3 {[%emt 0:00:03]} Nh7 {
[%emt 0:00:12]} 12. Qd2 {[%emt 0:00:16]} f5 {[%emt 0:00:00]} 13. Bxh6 {[%emt 0:
00:18]} f4 {[%emt 0:00:00]} 14. Bxg7 {[%emt 0:00:11]} Kxg7 {[%emt 0:00:00]} 15.
Be2 {[%emt 0:01:06]} Ng5 {[%emt 0:00:08]} 16. Nh2 {[%emt 0:00:03]} Nxh3+ {
[%emt 0:00:38]} 17. gxh3 {[%emt 0:00:10]} Bxh3 {[%emt 0:00:00]} 18. Bg4 {
[%emt 0:00:16]} Bxg4 {[%emt 0:00:50]} 19. Nxg4 {[%emt 0:00:00]} f3 {[%emt 0:00:
04]} 20. Qh6+ {[%emt 0:00:03]} Kf7 {[%emt 0:00:10]} 21. Qh7+ {[%emt 0:00:07]}
Ke8 {[%emt 0:00:00]} 22. Nb5 {[%emt 0:00:15]} Rc8 {[%emt 0:00:13]} 23. Qxg6+ {
[%emt 0:00:06]} 1-0

[Event "RUS-ch Blitz 2021"]
[Site "Sochi"]
[Date "2021.10.11"]
[Round "1.21"]
[White "Petrov, Nikita"]
[Black "Lebzak, Yaroslav"]
[Result "1-0"]
[ECO "A11"]
[WhiteElo "2539"]
[BlackElo "2050"]
[Annotator "ChessBase"]
[PlyCount "117"]
[EventDate "2021.10.11"]
[EventType "blitz"]
[EventCountry "RUS"]
[SourceTitle "playchess.com"]
[Source "ChessBase"]
[SourceQuality "1"]
[TimeControl "180+2"]

1. Nf3 {[%emt 0:00:00]} d5 {[%emt 0:00:05]} 2. g3 {[%emt 0:00:01]} Bg4 {
[%emt 0:00:00]} 3. Bg2 {[%emt 0:00:00]} Nd7 {[%emt 0:00:00]} 4. c4 {[%emt 0:00:
08]} c6 {[%emt 0:00:09]} 5. Qb3 {[%emt 0:00:08]} Qb6 {[%emt 0:00:15]} 6. d3 {
[%emt 0:00:00]} e6 {[%emt 0:00:15]} 7. Be3 {[%emt 0:00:00]} Bc5 {[%emt 0:00:27]
} 8. Bxc5 {[%emt 0:00:14]} Nxc5 {[%emt 0:00:02]} 9. Qc2 {[%emt 0:00:00]} Nf6 {
[%emt 0:00:21]} 10. Nbd2 {[%emt 0:00:00]} Ncd7 {[%emt 0:00:08]} 11. O-O {
[%emt 0:00:09]} O-O {[%emt 0:00:00]} 12. h3 {[%emt 0:00:48]} Bxf3 {[%emt 0:00:
00]} 13. Bxf3 {[%emt 0:00:00]} e5 {[%emt 0:00:00]} 14. e3 {[%emt 0:00:00]} Rfe8
{[%emt 0:00:29]} 15. Bg2 {[%emt 0:00:00]} Rad8 {[%emt 0:00:07]} 16. Rac1 {
[%emt 0:00:10]} Qa6 {[%emt 0:00:18]} 17. a3 {[%emt 0:00:11]} dxc4 {[%emt 0:00:
19]} 18. Nxc4 {[%emt 0:00:04]} Nc5 {[%emt 0:00:00]} 19. Rfd1 {[%emt 0:00:04]}
Qa4 {[%emt 0:00:30]} 20. Qxa4 {[%emt 0:00:28]} Nxa4 {[%emt 0:00:00]} 21. b4 {
[%emt 0:00:03]} g6 {[%emt 0:00:09]} 22. Kf1 {[%emt 0:00:04]} Kg7 {[%emt 0:00:
00]} 23. Ke2 {[%emt 0:00:00]} Nb6 {[%emt 0:00:05]} 24. Na5 {[%emt 0:00:02]} Re7
{[%emt 0:00:05]} 25. Bxc6 {[%emt 0:00:03]} bxc6 {[%emt 0:00:03]} 26. Nxc6 {
[%emt 0:00:00]} Rdd7 {[%emt 0:00:00]} 27. Nxe7 {[%emt 0:00:03]} Rxe7 {[%emt 0:
00:01]} 28. Rc5 {[%emt 0:00:07]} Na4 {[%emt 0:00:04]} 29. Rc2 {[%emt 0:00:06]}
Nd5 {[%emt 0:00:00]} 30. Rdc1 {[%emt 0:00:00]} Nab6 {[%emt 0:00:05]} 31. Rc5 {
[%emt 0:00:00]} f5 {[%emt 0:00:01]} 32. Ra5 {[%emt 0:00:07]} f4 {[%emt 0:00:02]
} 33. Rcc5 {[%emt 0:00:00]} fxg3 {[%emt 0:00:03]} 34. fxg3 {[%emt 0:00:04]} Rd7
{[%emt 0:00:02]} 35. Rc6 {[%emt 0:00:20]} Kf7 {[%emt 0:00:00]} 36. e4 {[%emt 0:
00:05]} Ne7 {[%emt 0:00:07]} 37. Rcc5 {[%emt 0:00:00]} h6 {[%emt 0:00:01]} 38.
h4 {[%emt 0:00:02]} h5 {[%emt 0:00:00]} 39. Rab5 {[%emt 0:00:06]} Ng8 {[%emt 0:
00:01]} 40. Rxe5 {[%emt 0:00:00]} Nf6 {[%emt 0:00:05]} 41. Rec5 {[%emt 0:00:10]
} Kg7 {[%emt 0:00:01]} 42. Ra5 {[%emt 0:00:04]} Ng4 {[%emt 0:00:02]} 43. Rc6 {
[%emt 0:00:06]} Rf7 {[%emt 0:00:02]} 44. Rg5 {[%emt 0:00:03]} Rf2+ {[%emt 0:00:
03]} 45. Ke1 {[%emt 0:00:00]} Ra2 {[%emt 0:00:02]} 46. Rcxg6+ {[%emt 0:00:05]}
Kf7 {[%emt 0:00:00]} 47. Rg7+ {[%emt 0:00:02]} Kf8 {[%emt 0:00:00]} 48. Rxa7 {
[%emt 0:00:14]} Ne3 {[%emt 0:00:00]} 49. Rc5 {[%emt 0:00:00]} Ng2+ {[%emt 0:00:
04]} 50. Kd1 {[%emt 0:00:01]} Ne3+ {[%emt 0:00:02]} 51. Kc1 {[%emt 0:00:00]}
Rg2 {[%emt 0:00:03]} 52. a4 {[%emt 0:00:03]} Rg1+ {[%emt 0:00:02]} 53. Kb2 {
[%emt 0:00:01]} Rg2+ {[%emt 0:00:03]} 54. Kb3 {[%emt 0:00:01]} Nd1 {[%emt 0:00:
03]} 55. a5 {[%emt 0:00:03]} Rb2+ {[%emt 0:00:02]} 56. Ka3 {[%emt 0:00:01]} Rb1
{[%emt 0:00:02]} 57. axb6 {[%emt 0:00:03]} Ra1+ {[%emt 0:00:00]} 58. Kb3 {
[%emt 0:00:03]} Rb1+ {[%emt 0:00:03]} 59. Kc2 {[%emt 0:00:00]} 1-0